fUST/lending_fUST_20240707
["ID","MTS","AMOUNT","RATE_DAILY","PERIOD"]
[331398393,1720345845042,-359.64,0.00034794,5]
[331398394,1720345845052,-500.0,0.00034794,5]
[331398395,1720345845061,-359.64,0.00034794,5]
[331398396,1720345845075,-500.0,0.00034794,5]
[331398397,1720345845084,-899.23,0.00034794,5]
[331398398,1720345845094,-1750.4,0.00034794,5]
[331398399,1720345845104,-500.0,0.00034794,5]
[331398400,1720345845114,-2328.67,0.00034794,5]
[331398401,1720345845124,-500.0,0.00034794,5]
[331398402,1720345845133,-554.26,0.00034794,5]
[331398403,1720345845143,-500.0,0.00034794,2]
[331398404,1720345845153,-151.0,0.00034794,7]
[331398405,1720345845163,-2000.0,0.00034794,5]
[331398406,1720345845172,-500.0,0.00034794,5]
[331398407,1720345845182,-212.753464,0.00034794,7]
[331398408,1720345845192,-151.0,0.00034794,7]
[331398409,1720345845202,-151.0,0.00034794,7]
[331398410,1720345845211,-500.0,0.00034794,20]
[331398411,1720345845221,-500.0,0.00034794,5]
[331398412,1720345845231,-200.0,0.00034794,5]
[331398413,1720345845240,-421.1665027,0.00034794,14]
[331398414,1720345845250,-153.0,0.00034795,2]
[331398415,1720345845260,-153.0,0.00034795,2]
[331398416,1720345845270,-206.1814845,0.00034795,2]
[331398417,1720345845281,-1000.0,0.000348,3]
[331398418,1720345845291,-394.06459214,0.00034811,4]
[331398419,1720345845300,-1279.0,0.00034818,2]
[331398420,1720345845310,-1104.74204561,0.00034999,4]
[331398421,1720345845320,-1158.30679459,0.00034999,4]
[331398422,1720345845330,-952.75036955,0.00034999,4]
[331398423,1720345845340,-399.49347771,0.00035,2]
[331398424,1720345845351,-474.22653977,0.00035,4]
[331398425,1720345845361,-595.10919768,0.00035,120]
[331398426,1720345845372,-619.05853844,0.00035,30]
[331398427,1720345845386,-3124.269013,0.00035,7]
[331398428,1720345845395,-8395.57,0.00035068,5]
[331398429,1720345845405,-500.0,0.00035068,5]
[331398430,1720345845414,-500.0,0.00035068,5]
[331398431,1720345845425,-3859.64,0.00035068,5]
[331398432,1720345845435,-500.0,0.00035068,5]
[331398433,1720345845444,-500.0,0.00035068,5]
[331398434,1720345845455,-500.0,0.00035068,5]
[331398435,1720345845464,-500.0,0.00035068,5]
[331398436,1720345845475,-899.23,0.00035068,5]
[331398437,1720345845485,-1750.4,0.00035068,5]
[331398438,1720345845495,-500.0,0.00035068,5]
[331398439,1720345845504,-2328.67,0.00035068,5]
[331398440,1720345845514,-500.0,0.00035068,5]
[331398441,1720345845524,-554.26,0.00035068,5]
[331398442,1720345845534,-500.0,0.00035068,2]
[331398443,1720345845545,-2000.0,0.00035068,5]
[331398444,1720345845555,-500.0,0.00035068,5]
[331398445,1720345845565,-500.0,0.00035068,20]
[331398446,1720345845575,-500.0,0.00035068,5]
[331398447,1720345845585,-200.0,0.00035068,5]
[331398448,1720345845595,-8395.57,0.00035342,5]
[331398449,1720345845605,-500.0,0.00035342,5]
[331398450,1720345845615,-500.0,0.00035342,5]
[331398451,1720345845624,-3859.64,0.00035342,5]
[331398452,1720345845634,-500.0,0.00035342,5]
[331398453,1720345845643,-500.0,0.00035342,5]
[331398454,1720345845653,-500.0,0.00035342,5]
[331398455,1720345845662,-500.0,0.00035342,5]
[331398456,1720345845673,-899.23,0.00035342,5]
[331398457,1720345845683,-592.25782,0.00035342,5]
[331398458,1720345845692,-2328.67,0.00035342,5]
[331398459,1720345845702,-500.0,0.00035342,5]
[331398460,1720345845712,-554.26,0.00035342,5]
[331398461,1720345845722,-500.0,0.00035342,2]
[331398462,1720345845733,-151.0,0.00035342,7]
[331398463,1720345845743,-162.990524,0.00035342,7]
[331398464,1720345845752,-162.990524,0.00035342,7]
[331398465,1720345845763,-151.0,0.00035342,7]
[331398466,1720345845772,-2000.0,0.00035342,5]
[331398467,1720345845783,-500.0,0.00035342,5]
[331398468,1720345845794,-515.60688867,0.00035342,20]
[331398469,1720345845804,-500.0,0.00035342,5]
[331398470,1720345845814,-331.40167299,0.00035342,5]
[331398471,1720345845825,-150.0,0.00035486,2]
[331398472,1720345845836,-164.3372441,0.00035511,2]
[331398473,1720345845847,-153.0,0.00035511,2]
[331398474,1720345845857,-8395.57,0.00035616,5]
[331398475,1720345845867,-284.12304729,0.00035616,5]
[331398476,1720345845878,-500.0,0.00035616,5]
[331398477,1720345845889,-3859.64,0.00035616,5]
[331398478,1720345845900,-500.0,0.00035616,5]
[331398479,1720345845911,-500.0,0.00035616,5]
[331398480,1720345845922,-500.0,0.00035616,5]
[331398481,1720345845931,-500.0,0.00035616,5]
[331398482,1720345845940,-899.23,0.00035616,5]
[331398483,1720345845949,-1750.4,0.00035616,5]
[331398484,1720345845959,-2328.67,0.00035616,5]
[331398485,1720345845968,-500.0,0.00035616,5]
[331398486,1720345845977,-554.26,0.00035616,5]
[331398487,1720345845986,-500.0,0.00035616,2]
[331398488,1720345845995,-2000.0,0.00035616,5]
[331398489,1720345846004,-500.0,0.00035616,5]
[331398490,1720345846013,-277.3700117,0.00035616,5]
[331398491,1720345846027,-222.6299883,0.00035616,5]
[331398492,1720345846037,-153.0,0.00035616,2]
[331398493,1720345846046,-153.0,0.00035616,2]
[331398494,1720345846056,-153.0,0.00035616,2]
[331398495,1720345846065,-153.0,0.00035616,2]
[331398496,1720345846074,-8395.57,0.0003589,5]
[331398497,1720345846083,-500.0,0.0003589,5]
[331398498,1720345846093,-3859.64,0.0003589,5]
[331398499,1720345846102,-500.0,0.0003589,5]
[331398500,1720345846112,-500.0,0.0003589,5]
[331398501,1720345846121,-500.0,0.0003589,5]
[331398502,1720345846130,-500.0,0.0003589,5]
[331398503,1720345846140,-899.23,0.0003589,5]
[331398504,1720345846149,-1750.4,0.0003589,5]
[331398505,1720345846158,-2328.67,0.0003589,5]
[331398506,1720345846168,-500.0,0.0003589,5]
[331398507,1720345846177,-554.26,0.0003589,5]
[331398508,1720345846186,-500.0,0.0003589,2]
[331398509,1720345846195,-2000.0,0.0003589,5]
[331398510,1720345846204,-500.0,0.0003589,5]
[331398511,1720345846213,-500.0,0.0003589,5]
[331398512,1720345846222,-213.2212496,0.0003589,2]
[331398513,1720345846232,-206.2377939,0.0003589,2]
[331398514,1720345846241,-412.0147175,0.0003589,2]
[331398515,1720345846251,-620.0,0.00035979,2]
[331398516,1720345846260,-531.56332391,0.00036,30]
[331398517,1720345846270,-259.0,0.00036,2]
[331398518,1720345846280,-259.0,0.00036,2]
[331398519,1720345846290,-150.0,0.00036135,2]
[331398520,1720345846299,-1405.0,0.00036135,2]
[331398521,1720345846309,-150.0,0.00036163,2]
[331398522,1720345846319,-8395.57,0.00036164,5]
[331398523,1720345846328,-500.0,0.00036164,5]
[331398524,1720345846338,-3859.64,0.00036164,5]
[331398525,1720345846347,-500.0,0.00036164,5]
[331398526,1720345846357,-500.0,0.00036164,5]
[331398527,1720345846367,-500.0,0.00036164,5]
[331398528,1720345846378,-500.0,0.00036164,5]
[331398529,1720345846388,-899.23,0.00036164,5]
[331398530,1720345846397,-1750.4,0.00036164,5]
[331398531,1720345846408,-2328.67,0.00036164,5]
[331398532,1720345846417,-500.0,0.00036164,5]
[331398533,1720345846428,-554.26,0.00036164,5]
[331398534,1720345846438,-575.95691693,0.00036164,2]
[331398535,1720345846447,-2000.0,0.00036164,5]
[331398536,1720345846460,-500.0,0.00036164,5]
[331398537,1720345846469,-500.0,0.00036164,5]
[331398538,1720345846479,-257.69157416,0.0003624,2]
[331398539,1720345846488,-157.413024,0.00036301,2]
[331398540,1720345846497,-329.72974307,0.00036351,4]
[331398541,1720345846506,-160.0,0.00036387,3]
[331398542,1720345846516,-8395.57,0.00036438,5]
[331398543,1720345846525,-500.0,0.00036438,5]
[331398544,1720345846534,-3859.64,0.00036438,5]
[331398545,1720345846545,-500.0,0.00036438,5]
[331398546,1720345846555,-500.0,0.00036438,5]
[331398547,1720345846564,-500.0,0.00036438,5]
[331398548,1720345846573,-500.0,0.00036438,5]
[331398549,1720345846582,-899.23,0.00036438,5]
[331398550,1720345846592,-1750.4,0.00036438,5]
[331398551,1720345846602,-2328.67,0.00036438,5]
[331398552,1720345846611,-500.0,0.00036438,5]
[331398553,1720345846620,-554.26,0.00036438,5]
[331398554,1720345846630,-157.916529,0.00036438,7]
[331398555,1720345846639,-2000.0,0.00036438,5]
[331398556,1720345846648,-500.0,0.00036438,5]
[331398557,1720345846657,-151.0,0.00036438,7]
[331398558,1720345846667,-151.0,0.00036438,7]
[331398569,1720345846789,-189.202644,0.00036438,7]
[331398571,1720345846799,-189.202644,0.00036438,7]
[331398573,1720345846809,-500.0,0.00036438,5]
[331398575,1720345846818,-168.08001,0.00036438,7]
[331398577,1720345846828,-151.0,0.00036438,7]
[331398579,1720345846837,-151.0,0.00036438,7]
[331398581,1720345846847,-215.746321,0.00036438,7]
[331398583,1720345846856,-215.746321,0.00036438,7]
[331398585,1720345846866,-183.149648,0.00036438,7]
[331398587,1720345846876,-151.0,0.00036438,7]
[331398589,1720345846886,-480.345043,0.00036438,7]
[331398591,1720345846895,-183.149648,0.00036438,7]
[331398593,1720345846905,-421.815849,0.00036438,7]
[331398595,1720345846914,-480.345043,0.00036438,7]
[331398597,1720345846923,-421.815849,0.00036438,7]
[331398599,1720345846933,-246.6,0.0003666,120]
[331398601,1720345846942,-175.1,0.00036679,15]
[331398603,1720345846952,-8395.57,0.00036712,5]
[331398605,1720345846961,-247.11966073,0.00036712,5]
[331398607,1720345846971,-3859.64,0.00036712,5]
[331398609,1720345846980,-500.0,0.00036712,5]
[331398611,1720345846991,-500.0,0.00036712,5]
[331398613,1720345847000,-500.0,0.00036712,5]
[331398615,1720345847010,-500.0,0.00036712,5]
[331398617,1720345847019,-899.23,0.00036712,5]
[331398619,1720345847028,-1750.4,0.00036712,5]
[331398621,1720345847039,-2328.67,0.00036712,5]
[331398622,1720345847048,-500.0,0.00036712,5]
[331398624,1720345847058,-554.26,0.00036712,5]
[331398626,1720345847068,-2000.0,0.00036712,5]
[331398628,1720345847077,-263.72656033,0.00036712,5]
[331398630,1720345847087,-151.0,0.00036712,7]
[331398632,1720345847096,-151.0,0.00036712,7]
[331398633,1720345847105,-500.0,0.00036712,5]
[331398634,1720345847114,-153.0,0.00036712,2]
[331398635,1720345847124,-153.0,0.00036712,2]
[331398636,1720345847133,-306.0,0.00036712,2]
[331398637,1720345847143,-1091.94033098,0.00036732,21]
[331398638,1720345847152,-156.12329871,0.00036732,4]
[331398639,1720345847162,-3263.54270159,0.000368,30]
[331398640,1720345847171,-153.0,0.00036849,2]
[331398641,1720345847180,-8395.57,0.00036986,5]
[331398642,1720345847189,-3859.64,0.00036986,5]
[331398643,1720345847199,-500.0,0.00036986,5]
[331398644,1720345847207,-500.0,0.00036986,5]
[331398645,1720345847217,-500.0,0.00036986,5]
[331398646,1720345847226,-500.0,0.00036986,5]
[331398647,1720345847236,-899.23,0.00036986,5]
[331398648,1720345847246,-1750.4,0.00036986,5]
[331398649,1720345847255,-2328.67,0.00036986,5]
[331398650,1720345847265,-500.0,0.00036986,5]
[331398651,1720345847274,-151.0,0.00036986,7]
[331398652,1720345847283,-554.26,0.00036986,5]
[331398653,1720345847296,-2000.0,0.00036986,5]
[331398654,1720345847305,-500.0,0.00036986,5]
[331398655,1720345847314,-155.11332947,0.00037,4]
[331398656,1720345847323,-294.40000031,0.00037085,2]
[331398657,1720345847333,-182.97392112,0.00037085,4]
[331398658,1720345847342,-175.1,0.00037132,15]
[331398659,1720345847351,-152.0,0.00037132,15]
[331398660,1720345847360,-150.0,0.00037163,2]
[331398661,1720345847370,-160.0,0.00037215,4]
[331398662,1720345847381,-215.95451843,0.00037259,4]
[331398663,1720345847391,-188.41784728,0.00037259,4]
[331398664,1720345847401,-8395.57,0.0003726,5]
[331398665,1720345847410,-3859.64,0.0003726,5]
[331398666,1720345847419,-500.0,0.0003726,5]
[331398667,1720345847428,-395.57,0.0003726,5]
[331398668,1720345847437,-395.57,0.0003726,5]
[331398669,1720345847447,-395.57,0.0003726,5]
[331398670,1720345847457,-899.23,0.0003726,5]
[331398671,1720345847470,-1750.4,0.0003726,5]
[331398672,1720345847480,-2328.67,0.0003726,5]
[331398673,1720345847489,-500.0,0.0003726,5]
[331398674,1720345847499,-554.26,0.0003726,5]
[331398675,1720345847509,-151.0,0.0003726,7]
[331398677,1720345847518,-162.990524,0.0003726,7]
[331398678,1720345847528,-162.990524,0.0003726,7]
[331398681,1720345847539,-151.0,0.0003726,7]
[331398683,1720345847549,-2000.0,0.0003726,5]
[331398685,1720345847558,-500.0,0.0003726,5]
[331398687,1720345847567,-293.4755649,0.0003726,2]
[331398688,1720345847576,-293.4755649,0.0003726,2]
[331398690,1720345847586,-293.4755649,0.0003726,2]
[331398691,1720345847595,-293.4755649,0.0003726,2]
[331398692,1720345847605,-293.4755649,0.0003726,2]
[331398693,1720345847614,-293.4755649,0.0003726,2]
[331398694,1720345847623,-293.4755649,0.0003726,2]
[331398695,1720345847633,-293.4755649,0.0003726,2]
[331398696,1720345847642,-293.4755649,0.0003726,2]
[331398697,1720345847651,-293.4755649,0.0003726,2]
[331398698,1720345847661,-153.0,0.00037507,2]
[331398699,1720345847674,-8395.57,0.00037534,5]
[331398700,1720345847683,-3859.64,0.00037534,5]
[331398701,1720345847693,-500.0,0.00037534,5]
[331398702,1720345847702,-899.23,0.00037534,5]
[331398703,1720345847711,-1750.4,0.00037534,5]
[331398704,1720345847720,-2328.67,0.00037534,5]
[331398705,1720345847729,-500.0,0.00037534,5]
[331398706,1720345847738,-554.26,0.00037534,5]
[331398707,1720345847748,-500.0,0.00037534,5]
[331398708,1720345847757,-152.0,0.00037584,15]
[331398709,1720345847766,-264.97857403,0.00037587,2]
[331398710,1720345847775,-215.10199221,0.00037587,4]
[331398711,1720345847784,-154.68290005,0.00037587,2]
[331398712,1720345847795,-200.0,0.0003776,120]
[331398713,1720345847804,-154.74467129,0.00037807,4]
[331398714,1720345847813,-8395.57,0.00037808,5]
[331398715,1720345847823,-3859.64,0.00037808,5]
[331398716,1720345847832,-500.0,0.00037808,5]
[331398717,1720345847841,-899.23,0.00037808,5]
[331398718,1720345847850,-1750.4,0.00037808,5]
[331398719,1720345847860,-2328.67,0.00037808,5]
[331398720,1720345847870,-500.0,0.00037808,5]
[331398721,1720345847878,-554.26,0.00037808,5]
[331398722,1720345847887,-500.0,0.00037808,5]
[331398723,1720345847896,-683.0,0.00037818,5]
[331398724,1720345847905,-435.0,0.00037899,2]
[331398725,1720345847914,-500.0,0.00038,120]
[331398726,1720345847923,-500.0,0.00038,120]
[331398727,1720345847932,-500.0,0.00038,120]
[331398728,1720345847941,-175.1,0.00038036,15]
[331398729,1720345847950,-152.0,0.00038036,15]
[331398730,1720345847959,-160.0,0.00038042,5]
[331398731,1720345847968,-8395.57,0.00038082,5]
[331398732,1720345847978,-3859.64,0.00038082,5]
[331398733,1720345847987,-500.0,0.00038082,5]
[331398734,1720345847997,-899.23,0.00038082,5]
[331398735,1720345848006,-1750.4,0.00038082,5]
[331398736,1720345848015,-2328.67,0.00038082,5]
[331398737,1720345848024,-500.0,0.00038082,5]
[331398738,1720345848033,-163.007398,0.00038082,7]
[331398739,1720345848044,-554.26,0.00038082,5]
[331398740,1720345848055,-500.0,0.00038082,5]
[331398741,1720345848065,-256.67016396,0.00038229,2]
[331398742,1720345848074,-8395.57,0.00038356,5]
[331398743,1720345848084,-3859.64,0.00038356,5]
[331398744,1720345848094,-500.0,0.00038356,5]
[331398745,1720345848104,-899.23,0.00038356,5]
[331398746,1720345848113,-1750.4,0.00038356,5]
[331398747,1720345848122,-2328.67,0.00038356,5]
[331398748,1720345848131,-515.39021683,0.00038356,5]
[331398749,1720345848141,-554.26,0.00038356,5]
[331398750,1720345848150,-151.0,0.00038356,7]
[331398751,1720345848159,-189.202644,0.00038356,7]
[331398752,1720345848168,-189.202644,0.00038356,7]
[331398753,1720345848178,-500.0,0.00038356,5]
[331398754,1720345848187,-293.3880832,0.00038356,2]
[331398755,1720345848197,-153.0,0.00038356,2]
[331398756,1720345848206,-150.0,0.00038486,2]
[331398757,1720345848217,-152.0,0.00038488,15]
[331398758,1720345848228,-8395.57,0.0003863,5]
[331398759,1720345848239,-3859.64,0.0003863,5]
[331398760,1720345848249,-500.0,0.0003863,5]
[331398761,1720345848258,-899.23,0.0003863,5]
[331398762,1720345848268,-1750.4,0.0003863,5]
[331398763,1720345848277,-2328.67,0.0003863,5]
[331398764,1720345848286,-554.26,0.0003863,5]
[331398765,1720345848297,-503.79773813,0.0003863,5]
[331398766,1720345848306,-151.0,0.0003863,14]
[331398767,1720345848315,-201.857106,0.0003863,14]
[331398768,1720345848325,-215.746321,0.0003863,14]
[331398769,1720345848334,-215.746321,0.0003863,14]
[331398770,1720345848343,-183.149648,0.0003863,14]
[331398771,1720345848354,-151.0,0.0003863,14]
[331398772,1720345848363,-480.345043,0.0003863,14]
[331398773,1720345848373,-421.815849,0.0003863,14]
[331398774,1720345848387,-183.149648,0.0003863,14]
[331398775,1720345848396,-480.345043,0.0003863,14]
[331398776,1720345848406,-421.815849,0.0003863,14]
[331398777,1720345848415,-206.2377939,0.0003873,2]
[331398778,1720345848427,-153.0,0.0003873,2]
[331398779,1720345848436,-306.0,0.0003873,2]
[331398780,1720345848446,-308.2919559,0.0003873,2]
[331398781,1720345848455,-206.2377939,0.0003873,2]
[331398782,1720345848466,-206.2377939,0.0003873,2]
[331398783,1720345848475,-200.0,0.00038759,120]
[331398784,1720345848485,-3013.36725694,0.00038778,65]
[331398785,1720345848495,-160.0,0.0003887,6]
[331398786,1720345848504,-8395.57,0.00038904,5]
[331398787,1720345848513,-3859.64,0.00038904,5]
[331398788,1720345848524,-151.86315385,0.00038904,5]
[331398789,1720345848533,-899.23,0.00038904,5]
[331398790,1720345848544,-1750.4,0.00038904,5]
[331398791,1720345848554,-2328.67,0.00038904,5]
[331398792,1720345848563,-554.26,0.00038904,5]
[331398793,1720345848572,-151.0,0.00038904,14]
[331398794,1720345848582,-151.0,0.00038904,14]
[331398795,1720345848591,-152.0,0.00038941,15]
[331398796,1720345848600,-750.0,0.00039,120]
[331398797,1720345848611,-750.0,0.00039,120]
[331398798,1720345848620,-750.0,0.00039,120]
[331398799,1720345848632,-259.0,0.00039,2]
[331398800,1720345848642,-150.0,0.00039135,2]
[331398801,1720345848652,-1405.0,0.00039135,2]
[331398802,1720345848662,-8395.72959323,0.00039178,5]
[331398803,1720345848673,-3859.8476526,0.00039178,5]
[331398804,1720345848683,-899.30903204,0.00039178,5]
[331398805,1720345848692,-1750.51164843,0.00039178,5]
[331398806,1720345848702,-2328.83782649,0.00039178,5]
[331398807,1720345848712,-151.0,0.00039178,14]
[331398808,1720345848721,-151.0,0.00039178,14]
[331398809,1720345848731,-554.36518358,0.00039178,5]
[331398810,1720345848741,-151.24510086,0.00039198,3]
[331398811,1720345848751,-155.38803171,0.000392,10]
[331398812,1720345848761,-175.1,0.00039393,15]
[331398813,1720345848770,-750.0,0.00039394,2]
[331398814,1720345848779,-160.0,0.00039697,7]
[331398815,1720345848789,-683.0,0.00039808,5]
[331398816,1720345848799,-152.0,0.00039845,15]
[331398817,1720345848808,-8731.90044413,0.00039987,3]
[331398818,1720345848817,-151.0,0.00039987,14]
[331398819,1720345848826,-162.990524,0.00039987,14]
[331398820,1720345848836,-162.990524,0.00039987,14]
[331398821,1720345848845,-151.0,0.00039987,14]
[331398822,1720345848855,-4009.03435647,0.0003999,4]
[331398823,1720345848865,-500.0,0.00039999,31]
[331398824,1720345848982,-339.95630241,0.00039999,31]
[331398825,1720345848992,-330.93199643,0.00039999,31]
[331398826,1720345849002,-500.0,0.00039999,31]
[331398827,1720345849012,-500.0,0.00039999,31]
[331398828,1720345849022,-500.0,0.00039999,31]
[331398829,1720345849032,-500.0,0.00039999,31]
[331398830,1720345849042,-500.0,0.00039999,31]
[331398831,1720345849052,-205.64820085,0.00039999,31]
[331398832,1720345849061,-500.0,0.00039999,31]
[331398833,1720345849071,-297.11481626,0.00039999,31]
[331398834,1720345849080,-500.0,0.00039999,31]
[331398835,1720345849090,-500.0,0.00039999,31]
[331398836,1720345849100,-500.0,0.00039999,31]
[331398837,1720345849110,-10000.0,0.0004,40]
[331398838,1720345849121,-151.0,0.0004,120]
[331398839,1720345849131,-154.71377951,0.0004,4]
[331398840,1720345849143,-200.0,0.0004,120]
[331398841,1720345849153,-900.0,0.0004,120]
[331398842,1720345849164,-900.0,0.0004,120]
[331398843,1720345849173,-900.0,0.0004,120]
[331398844,1720345849183,-969.54061456,0.0004,120]
[331398845,1720345849192,-4834.06010409,0.0004,2]
[331398846,1720345849202,-400.0,0.0004,7]
[331398847,1720345849211,-500.0,0.0004,120]
[331398848,1720345849223,-38532.73880915,0.0004,2]
[331398849,1720345849234,-5522.10200958,0.0004,7]
[331398850,1720345849244,-309.59754252,0.00040278,4]
[331398851,1720345849255,-293.4755649,0.00040398,2]
[331398852,1720345849265,-150.68356451,0.00040521,2]
[331398853,1720345849276,-160.0,0.00040525,8]
[331398854,1720345849285,-61578.76196181,0.00040546,2]
[331398855,1720345849637,-322.86439849,0.00016243,2]
[331398856,1720345849646,-352.6956938,0.00027397,2]
[331398857,1720345849657,-206.2377939,0.00034795,2]
[331398858,1720345849670,-62868.10876102,0.00040546,2]
[331398878,1720346392559,300.0,0.00024,60]
[331398897,1720347019278,602.99,0.00010959,2]
[331398898,1720347029804,502.49,0.00010959,2]
[331398909,1720347032958,-500.0,0.00016056,2]
[331398911,1720347032968,-300.0,0.00016244,2]
[331398913,1720347032977,-300.0,0.00016244,2]
[331398915,1720347032986,-4351.7,0.00016245,2]
[331398997,1720347038635,-517.01109085,0.00016244,2]
[331398998,1720347038646,-307.40213888,0.00016244,2]
[331398999,1720347038656,-500.0,0.00016244,2]
[331399000,1720347038666,-46.99558773,0.00016244,2]
[331399018,1720347040334,418.74,0.00010959,2]
[331399166,1720347041775,-453.00441227,0.00016244,2]
[331399167,1720347041785,-500.0,0.00016244,2]
[331399168,1720347041795,-596.32552359,0.00016244,2]
[331399169,1720347041804,-500.0,0.00016244,2]
[331399171,1720347041814,-500.0,0.00016244,2]
[331399173,1720347041823,-500.0,0.00016244,2]
[331399175,1720347041833,-500.0,0.00016244,2]
[331399177,1720347041845,-462.065268,0.00016244,2]
[331399179,1720347041856,-500.0,0.00016244,2]
[331399180,1720347041866,-571.76362982,0.00016244,2]
[331399181,1720347041876,-500.0,0.00016244,2]
[331399182,1720347041886,-72070.1285633,0.00016245,2]
[331399183,1720347041896,-57229.3410026,0.00016254,2]
[331399184,1720347041905,-42237.40544043,0.00016255,2]
[331399185,1720347041915,-17511.12731013,0.00016255,2]
[331399186,1720347041924,-166.666666,0.00016438,2]
[331399187,1720347041935,-166.666666,0.00016823,2]
[331399188,1720347041945,-1410.1556778,0.00016825,2]
[331399189,1720347041956,-166.666666,0.00017208,2]
[331399190,1720347041966,-166.666666,0.00017592,2]
[331399191,1720347041977,-166.666666,0.00017977,2]
[331399192,1720347041988,-166.666666,0.00018362,2]
[331399193,1720347041997,-17253.08901251,0.00018899,2]
[331399194,1720347042007,-637.5,0.00021096,2]
[331399195,1720347042017,-1469.914656,0.00022997,2]
[331399196,1720347042027,-250.0,0.00023716,2]
[331399197,1720347042037,-3000.0,0.00023931,2]
[331399198,1720347042046,-151.19763648,0.00023952,2]
[331399199,1720347042056,-763.48993106,0.00024,2]
[331399200,1720347042065,-472.6391721,0.00024,2]
[331399201,1720347042075,-155.1752081,0.00024,2]
[331399202,1720347042087,-225.62340528,0.00024,2]
[331399203,1720347042098,-4174.40467449,0.00024,2]
[331399204,1720347042110,-294.51676518,0.00024,2]
[331399205,1720347042119,-155.11136962,0.00024,2]
[331399206,1720347042128,-1409.92715609,0.00024,2]
[331399207,1720347042138,-2711.87592057,0.00024,2]
[331399208,1720347042147,-154.68290005,0.00025,2]
[331399209,1720347042158,-620.0,0.00025463,2]
[331399210,1720347042169,-330.93199643,0.0002549,2]
[331399211,1720347042179,-500.0,0.0002549,2]
[331399212,1720347042188,-339.95630241,0.0002549,2]
[331399213,1720347042197,-500.0,0.0002549,2]
[331399214,1720347042207,-500.0,0.0002549,2]
[331399215,1720347042216,-500.0,0.0002549,2]
[331399216,1720347042236,-193.9537406,0.0002549,2]
[331399217,1720347042247,-500.0,0.0002549,2]
[331399218,1720347042256,-500.0,0.0002549,2]
[331399219,1720347042266,-500.0,0.0002549,2]
[331399220,1720347042276,-357.98037139,0.0002549,2]
[331399221,1720347042286,-500.0,0.0002549,2]
[331399222,1720347042296,-80311.01014307,0.0002549,2]
[331399223,1720347042305,-144392.89435886,0.00025491,3]
[331399224,1720347042325,-8450.76276814,0.00025491,3]
[331399225,1720347042334,-47626.18128907,0.00025491,3]
[331399226,1720347042347,-38856.35525364,0.00025491,3]
[331399244,1720347073536,-66361.12058429,0.00025491,3]
[331399245,1720347073546,-100037.22177326,0.00025501,2]
[331399246,1720347073555,-265.87082816,0.00025869,2]
[331399247,1720347073565,-155.04373045,0.00025869,2]
[331399248,1720347073574,-934.12399024,0.00025869,2]
[331399249,1720347073584,-159.71453487,0.00025869,2]
[331399250,1720347073593,-210.22258052,0.00025902,2]
[331399251,1720347073602,-24900.0,0.00026354,2]
[331399252,1720347073612,-413.10779655,0.00026574,2]
[331399253,1720347073621,-541.59258739,0.00026574,2]
[331399254,1720347073631,-11922.15464398,0.0002675,3]
[331399255,1720347073640,-155.69650004,0.00026848,2]
[331399256,1720347073650,-182.65644103,0.00026848,2]
[331399257,1720347073660,-210.37538433,0.00026848,2]